[Event "RUS-chT Premier 2019"]
[Site "Sochi"]
[Date "2019.05.07"]
[Round "6.11"]
[White "Ponkratov, Pavel"]
[Black "Rozum, Ivan"]
[Result "1/2-1/2"]
[ECO "B12"]
[WhiteElo "2640"]
[BlackElo "2568"]
[Annotator "ChessBase"]
[PlyCount "101"]
[EventDate "2019.05.01"]
[EventType "team-tourn"]
[EventCountry "RUS"]
[SourceTitle "playchess.com"]
[Source "ChessBase"]
[SourceQuality "1"]
[TimeControl "40/5400+30:1800+30"]

1. e4 {[%emt 0:00:00]} c6 {[%emt 0:00:00]} 2. d4 {[%emt 0:00:13]} d5 {[%emt 0:00:00]} 3. e5 {[%emt 0:00:04]} Bf5 {[%emt 0:00:00]} 4. Nf3 {[%emt 0:00:04]} e6 {[%emt 0:00:00]} 5. Be2 {[%emt 0:00:04]} Ne7 {[%emt 0:00:11]} 6. O-O {[%emt 0:00:41]} c5 {[%emt 0:00:10]} 7. c3 {[%emt 0:05:00]} Nec6 {[%emt 0:00:28]} 8. Be3 {[%emt 0:00:55]} Nd7 {[%emt 0:01:04]} 9. Nbd2 {[%emt 0:03:46]} Be7 {[%emt 0:02:42]} 10. dxc5 {[%emt 0:02:26]} Bxc5 {[%emt 0:06:22]} 11. Bxc5 {[%emt 0:16:53]} Nxc5 {[%emt 0:00:07]} 12. Nb3 {[%emt 0:00:03]} Nd7 {[%emt 0:23:11]} 13. Nfd4 {[%emt 0:01:16]} Ndxe5 {[%emt 0:02:49]} 14. Nxf5 {[%emt 0:01:00]} exf5 {[%emt 0:04:18]} 15. Bf3 {[%emt 0:02:46]} Ne7 {[%emt 0:03:48]} 16. Re1 {[%emt 0:00:13]} Nxf3+ {[%emt 0:00:10]} 17. Qxf3 {[%emt 0:01:11]} O-O {[%emt 0:07:45]} 18. Re5 Rc8 19. Rae1 {[%emt 0:33:00]} Rc7 {[%emt 0:00:40]} 20. g3 {[%emt 0:00:04]} g6 {[%emt 0:02:29]} 21. Rd1 {[%emt 0:04:34]} Rd7 {[%emt 0:13:14]} 22. Nc5 {[%emt 0:03:03]} Rc7 {[%emt 0:00:11]} 23. Nb3 {[%emt 0:00:08]} Rd7 {[%emt 0:01:47]} 24. Nc5 {[%emt 0:00:55]} Rc7 {[%emt 0:00:05]} 25. b4 {[%emt 0:04:15]} b6 {[%emt 0:03:07]} 26. Na6 {[%emt 0:00:19]} Rc4 {[%emt 0:03:44]} 27. Qe2 {[%emt 0:04:44]} Re4 {[%emt 0:02:22]} 28. Rxe4 {[%emt 0:00:05]} fxe4 {[%emt 0:00:03]} 29. c4 {[%emt 0:00:03]} Qd7 {[%emt 0:05:23]} 30. cxd5 {[%emt 0:00:20]} Nxd5 {[%emt 0:02:01]} 31. Qxe4 {[%emt 0:00:32]} Qa4 {[%emt 0:01:39]} 32. Qxd5 {[%emt 0:00:20]} Qxa6 {[%emt 0:00:02]} 33. Re1 {[%emt 0:00:51]} Qa4 {[%emt 0:03:21]} 34. b5 {[%emt 0:01:11]} a6 {[%emt 0:00:35]} 35. bxa6 {[%emt 0:00:30]} Qxa6 {[%emt 0:00:03]} 36. Re7 {[%emt 0:00:26]} Qa3 {[%emt 0:00:57]} 37. Rc7 {[%emt 0:00:39]} Qb2 {[%emt 0:01:55]} 38. h4 {[%emt 0:00:34]} Qb1+ {[%emt 0:04:13]} 39. Kg2 {[%emt 0:00:08]} Qf5 {[%emt 0:00:04]} 40. Qxf5 {[%emt 0:00:00]} gxf5 {[%emt 0:00:00]} 41. h5 {[%emt 0:06:12]} Ra8 {[%emt 0:06:24]} 42. h6 {[%emt 0:00:16]} Kf8 {[%emt 0:00:20]} 43. Rc2 {[%emt 0:00:06]} Ke7 {[%emt 0:02:31]} 44. Kf3 {[%emt 0:06:06]} Kf6 {[%emt 0:00:47]} 45. Rc6+ {[%emt 0:00:15]} Kg5 {[%emt 0:00:22]} 46. Rxb6 {[%emt 0:01:10]} Rxa2 {[%emt 0:03:45]} 47. Rb7 {[%emt 0:01:18]} Ra3+ {[%emt 0:03:27]} 48. Kg2 {[%emt 0:00:09]} Kg6 {[%emt 0:00:08]} 49. Rb6+ {[%emt 0:00:08]} f6 {[%emt 0:00:06]} 50. Rc6 {[%emt 0:00:05]} Kg5 {[%emt 0:01:49]} 51. Rc5 {[%emt 0:01:02]} 1/2-1/2

[Event "RUS-chT Premier 2019"]
[Site "Sochi"]
[Date "2019.05.07"]
[Round "6.12"]
[White "Sychev, Klementy"]
[Black "Alekseenko, Kirill"]
[Result "1/2-1/2"]
[ECO "E19"]
[WhiteElo "2574"]
[BlackElo "2636"]
[Annotator "ChessBase"]
[PlyCount "82"]
[EventDate "2019.05.01"]
[EventType "team-tourn"]
[EventCountry "RUS"]
[SourceTitle "playchess.com"]
[Source "ChessBase"]
[SourceQuality "1"]
[TimeControl "40/5400+30:1800+30"]

1. Nf3 {[%emt 0:00:00]} Nf6 {[%emt 0:00:45]} 2. c4 {[%emt 0:00:17]} e6 {[%emt 0:00:53]} 3. g3 {[%emt 0:01:43]} a6 {[%emt 0:02:39]} 4. Bg2 {[%emt 0:00:26]} b5 {[%emt 0:00:30]} 5. b3 {[%emt 0:00:10]} Bb7 {[%emt 0:01:27]} 6. O-O {[%emt 0:00:21]} g6 {[%emt 0:06:21]} 7. Na3 {[%emt 0:20:32]} b4 {[%emt 0:06:50]} 8. Nc2 {[%emt 0:00:07]} a5 {[%emt 0:01:01]} 9. Bb2 {[%emt 0:04:40]} Na6 {[%emt 0:10:30]} 10. d3 {[%emt 0:06:22]} Bg7 {[%emt 0:03:29]} 11. e4 {[%emt 0:00:39]} d6 {[%emt 0:02:14]} 12. e5 {[%emt 0:27:06]} Nd7 {[%emt 0:07:34]} 13. d4 {[%emt 0:00:27]} a4 {[%emt 0:01:44]} 14. exd6 {[%emt 0:01:07]} cxd6 {[%emt 0:01:05]} 15. Bc1 {[%emt 0:03:54]} O-O {[%emt 0:00:46]} 16. Bf4 {[%emt 0:04:27]} e5 {[%emt 0:07:33]} 17. Bd2 {[%emt 0:03:04]} Rb8 {[%emt 0:02:43]} 18. Rb1 {[%emt 0:03:03]} axb3 {[%emt 0:02:36]} 19. axb3 {[%emt 0:00:59]} Bxf3 {[%emt 0:04:17]} 20. Bxf3 {[%emt 0:00:44]} exd4 {[%emt 0:00:20]} 21. Bc1 {[%emt 0:01:32]} Ne5 {[%emt 0:06:47]} 22. Nxd4 {[%emt 0:00:54]} Nxf3+ {[%emt 0:00:19]} 23. Nxf3 {[%emt 0:00:06]} Nc5 {[%emt 0:00:05]} 24. Qd5 {[%emt 0:03:06]} Rb6 {[%emt 0:02:37]} 25. Rd1 {[%emt 0:02:25]} Qa8 {[%emt 0:00:40]} 26. Be3 {[%emt 0:01:18]} Ra6 {[%emt 0:00:39]} 27. Ng5 {[%emt 0:04:24]} h6 {[%emt 0:02:40]} 28. Bxc5 {[%emt 0:03:05]} dxc5 {[%emt 0:00:13]} 29. Nf3 {[%emt 0:00:26]} Ra2 {[%emt 0:00:53]} 30. Ne5 {[%emt 0:04:43]} Qxd5 {[%emt 0:06:40]} 31. Rxd5 {[%emt 0:00:04]} Re8 {[%emt 0:00:03]} 32. Nd3 {[%emt 0:00:56]} Bd4 {[%emt 0:02:15]} 33. Rf1 {[%emt 0:00:23]} Rd2 {[%emt 0:00:23]} 34. Nxc5 {[%emt 0:00:16]} Ree2 {[%emt 0:00:10]} 35. Kh1 {[%emt 0:00:46]} Bxc5 {[%emt 0:01:40]} 36. Rxc5 {[%emt 0:00:02]} Rb2 {[%emt 0:00:22]} 37. Rc8+ {[%emt 0:02:15]} Kg7 {[%emt 0:00:02]} 38. c5 {[%emt 0:00:16]} Rxb3 {[%emt 0:04:07]} 39. c6 {[%emt 0:00:03]} Rc2 {[%emt 0:03:29]} 40. c7 {[%emt 0:00:00]} Kf6 {[%emt 0:00:00]} 41. Kg1 {[%emt 0:08:09]} Rbc3 {[%emt 0:02:42]} 1/2-1/2

[Event "RUS-chT Premier 2019"]
[Site "Sochi"]
[Date "2019.05.07"]
[Round "6.13"]
[White "Chigaev, Maksim"]
[Black "Bocharov, Ivan"]
[Result "1-0"]
[ECO "B13"]
[WhiteElo "2637"]
[BlackElo "2568"]
[Annotator "ChessBase"]
[PlyCount "89"]
[EventDate "2019.05.01"]
[EventType "team-tourn"]
[EventCountry "RUS"]
[SourceTitle "playchess.com"]
[Source "ChessBase"]
[SourceQuality "1"]
[TimeControl "40/5400+30:1800+30"]

1. e4 {[%emt 0:00:00]} c6 {[%emt 0:00:00]} 2. d4 {[%emt 0:00:00]} d5 {[%emt 0:00:00]} 3. exd5 {[%emt 0:00:00]} cxd5 {[%emt 0:00:00]} 4. Bd3 {[%emt 0:00:03]} Nc6 {[%emt 0:00:03]} 5. c3 {[%emt 0:00:08]} Nf6 {[%emt 0:00:14]} 6. h3 {[%emt 0:00:08]} g6 {[%emt 0:02:18]} 7. Bf4 {[%emt 0:00:40]} Bf5 {[%emt 0:00:42]} 8. Be2 {[%emt 0:00:17]} Bg7 {[%emt 0:00:52]} 9. Nf3 {[%emt 0:00:10]} O-O {[%emt 0:00:06]} 10. O-O {[%emt 0:00:05]} Rc8 {[%emt 0:01:13]} 11. Nbd2 {[%emt 0:00:36]} Ne4 {[%emt 0:00:50]} 12. Re1 {[%emt 0:00:25]} Qb6 {[%emt 0:05:02]} 13. Qb3 {[%emt 0:02:27]} Rfd8 {[%emt 0:02:55]} 14. Bf1 {[%emt 0:02:26]} Nxd2 {[%emt 0:12:56]} 15. Nxd2 {[%emt 0:01:09]} h6 {[%emt 0:03:04]} 16. a4 {[%emt 0:08:09]} g5 {[%emt 0:02:44]} 17. Bh2 {[%emt 0:01:37]} e6 {[%emt 0:00:12]} 18. Qb5 {[%emt 0:11:54]} Bf8 {[%emt 0:05:01]} 19. Nb3 {[%emt 0:02:07]} Bd6 {[%emt 0:05:24]} 20. Bxd6 {[%emt 0:01:13]} Rxd6 {[%emt 0:00:02]} 21. Nc5 {[%emt 0:00:28]} Rb8 {[%emt 0:03:57]} 22. Bd3 {[%emt 0:10:58]} Ne7 {[%emt 0:03:02]} 23. Bxf5 {[%emt 0:01:59]} Nxf5 {[%emt 0:00:06]} 24. Qe2 {[%emt 0:00:38]} Qd8 {[%emt 0:00:55]} 25. Qe5 {[%emt 0:02:05]} Nh4 {[%emt 0:07:23]} 26. a5 {[%emt 0:05:37]} Ng6 {[%emt 0:01:20]} 27. Qe2 {[%emt 0:00:13]} Rc6 {[%emt 0:02:05]} 28. Nd3 {[%emt 0:01:26]} Ra6 {[%emt 0:06:08]} 29. Ne5 {[%emt 0:04:42]} Nxe5 {[%emt 0:01:37]} 30. Qxe5 {[%emt 0:00:07]} Rc8 {[%emt 0:00:05]} 31. f4 {[%emt 0:00:35]} Qc7 {[%emt 0:08:43]} 32. fxg5 {[%emt 0:03:16]} Qxe5 {[%emt 0:00:03]} 33. Rxe5 {[%emt 0:00:07]} hxg5 {[%emt 0:04:08]} 34. Rxg5+ {[%emt 0:00:08]} Kh8 {[%emt 0:00:19]} 35. Kh2 {[%emt 0:07:18]} Rg8 {[%emt 0:01:06]} 36. Rxg8+ {[%emt 0:00:18]} Kxg8 {[%emt 0:00:01]} 37. g4 {[%emt 0:00:48]} f6 {[%emt 0:02:37]} 38. Kg3 {[%emt 0:00:52]} Kf7 {[%emt 0:01:32]} 39. h4 {[%emt 0:00:19]} Kg6 {[%emt 0:01:11]} 40. Kf4 {[%emt 0:00:00]} b6 {[%emt 0:00:00]} 41. axb6 {[%emt 0:05:26]} Rxb6 {[%emt 0:00:40]} 42. b4 {[%emt 0:00:41]} Rc6 {[%emt 0:00:40]} 43. h5+ {[%emt 0:00:09]} Kh6 {[%emt 0:00:13]} 44. Rxa7 {[%emt 0:00:06]} Rxc3 {[%emt 0:00:26]} 45. Rf7 {[%emt 0:00:43]} 1-0

[Event "RUS-chT Premier 2019"]
[Site "Sochi"]
[Date "2019.05.07"]
[Round "6.14"]
[White "Khanin, Semen"]
[Black "Paravyan, David"]
[Result "0-1"]
[ECO "B40"]
[WhiteElo "2524"]
[BlackElo "2610"]
[Annotator "ChessBase"]
[PlyCount "110"]
[EventDate "2019.05.01"]
[EventType "team-tourn"]
[EventCountry "RUS"]
[SourceTitle "playchess.com"]
[Source "ChessBase"]
[SourceQuality "1"]
[TimeControl "40/5400+30:1800+30"]

1. e4 {[%emt 0:00:00]} c5 {[%emt 0:00:00]} 2. Nf3 {[%emt 0:00:00]} e6 {[%emt 0:00:00]} 3. d4 {[%emt 0:00:00]} cxd4 {[%emt 0:00:00]} 4. Nxd4 {[%emt 0:00:00]} Be7 {[%emt 0:00:00]} 5. Nc3 {[%emt 0:05:13]} d6 {[%emt 0:00:00]} 6. Be3 {[%emt 0:01:50]} Nf6 {[%emt 0:00:00]} 7. f3 {[%emt 0:00:50]} h5 {[%emt 0:00:15]} 8. Qd2 {[%emt 0:03:10]} a6 {[%emt 0:00:05]} 9. O-O-O {[%emt 0:01:50]} b5 {[%emt 0:00:36]} 10. Kb1 {[%emt 0:03:10]} Bb7 {[%emt 0:04:32]} 11. Bd3 {[%emt 0:08:01]} Nbd7 {[%emt 0:02:14]} 12. a3 {[%emt 0:03:11]} Rc8 {[%emt 0:08:57]} 13. Rhe1 {[%emt 0:06:03]} Ne5 {[%emt 0:03:45]} 14. Bg5 {[%emt 0:07:12]} O-O {[%emt 0:24:06]} 15. h4 {[%emt 0:08:04]} Qb6 {[%emt 0:03:08]} 16. Qe3 {[%emt 0:10:40]} Rxc3 {[%emt 0:09:07]} 17. bxc3 {[%emt 0:00:20]} Qa5 {[%emt 0:02:12]} 18. Nb3 {[%emt 0:04:02]} Qxc3 {[%emt 0:00:35]} 19. f4 {[%emt 0:07:46]} Nxd3 {[%emt 0:05:36]} 20. Qxd3 {[%emt 0:00:56]} Qc7 {[%emt 0:00:27]} 21. Bxf6 {[%emt 0:09:10]} Bxf6 {[%emt 0:00:19]} 22. Qxd6 {[%emt 0:00:07]} Qc3 {[%emt 0:00:13]} 23. e5 {[%emt 0:00:49]} Bxh4 {[%emt 0:00:07]} 24. Rh1 {[%emt 0:01:58]} Be4 {[%emt 0:06:16]} 25. Na1 {[%emt 0:00:03]} Qg3 {[%emt 0:07:00]} 26. Qb4 {[%emt 0:08:06]} Bf5 {[%emt 0:04:22]} 27. Qc5 {[%emt 0:04:49]} g6 {[%emt 0:02:25]} 28. Kb2 {[%emt 0:00:43]} Qxf4 {[%emt 0:03:15]} 29. Rd4 {[%emt 0:00:03]} Be7 {[%emt 0:00:04]} 30. Rxf4 {[%emt 0:00:27]} Bxc5 {[%emt 0:00:04]} 31. Nb3 {[%emt 0:00:07]} Be3 {[%emt 0:00:04]} 32. Rb4 {[%emt 0:01:06]} Rd8 {[%emt 0:02:04]} 33. Re1 {[%emt 0:00:26]} Bd2 {[%emt 0:01:02]} 34. Nxd2 {[%emt 0:00:17]} Rxd2 {[%emt 0:00:04]} 35. g3 {[%emt 0:00:53]} Rxc2+ {[%emt 0:06:37]} 36. Kb3 {[%emt 0:00:03]} Rh2 {[%emt 0:01:00]} 37. Re3 {[%emt 0:01:09]} g5 {[%emt 0:00:46]} 38. Rd4 {[%emt 0:00:07]} Kg7 {[%emt 0:02:15]} 39. Kb4 {[%emt 0:00:39]} Rh3 {[%emt 0:00:48]} 40. Rc3 {[%emt 0:00:00]} h4 {[%emt 0:00:00]} 41. gxh4 {[%emt 0:09:27]} a5+ {[%emt 0:03:13]} 42. Kb3 {[%emt 0:00:17]} Rxh4 {[%emt 0:01:22]} 43. Rd8 {[%emt 0:01:35]} b4 {[%emt 0:11:33]} 44. axb4 {[%emt 0:02:09]} Rxb4+ {[%emt 0:00:04]} 45. Ka3 {[%emt 0:00:05]} Re4 {[%emt 0:00:05]} 46. Rc5 {[%emt 0:00:11]} a4 {[%emt 0:00:09]} 47. Ra8 {[%emt 0:00:59]} g4 {[%emt 0:00:06]} 48. Rxa4 {[%emt 0:00:05]} Rxa4+ {[%emt 0:01:08]} 49. Kxa4 {[%emt 0:00:05]} Kh6 {[%emt 0:00:02]} 50. Kb4 {[%emt 0:03:24]} g3 {[%emt 0:01:23]} 51. Rc1 {[%emt 0:01:38]} Kg5 {[%emt 0:00:30]} 52. Kc5 {[%emt 0:00:05]} Kf4 {[%emt 0:00:18]} 53. Kd6 {[%emt 0:00:44]} g2 {[%emt 0:00:29]} 54. Ke7 {[%emt 0:00:14]} Kg3 {[%emt 0:00:37]} 55. Kxf7 {[%emt 0:00:12]} Kf2 {[%emt 0:00:16]} 0-1

[Event "RUS-chT Premier 2019"]
[Site "Sochi"]
[Date "2019.05.07"]
[Round "6.15"]
[White "Esipenko, Andrey"]
[Black "Tsydypov, Zhamsaran"]
[Result "1-0"]
[ECO "A49"]
[WhiteElo "2620"]
[BlackElo "2546"]
[Annotator "ChessBase"]
[PlyCount "75"]
[EventDate "2019.05.01"]
[EventType "team-tourn"]
[EventCountry "RUS"]
[SourceTitle "playchess.com"]
[Source "ChessBase"]
[SourceQuality "1"]
[TimeControl "40/5400+30:1800+30"]

1. d4 {[%emt 0:00:00]} Nf6 {[%emt 0:00:48]} 2. Nf3 {[%emt 0:00:00]} g6 {[%emt 0:00:13]} 3. g3 {[%emt 0:00:07]} Bg7 {[%emt 0:00:27]} 4. Bg2 {[%emt 0:00:09]} d5 {[%emt 0:02:11]} 5. O-O {[%emt 0:00:49]} O-O {[%emt 0:01:08]} 6. c4 {[%emt 0:00:20]} dxc4 {[%emt 0:02:59]} 7. Na3 {[%emt 0:00:27]} Nc6 {[%emt 0:07:21]} 8. Nxc4 {[%emt 0:03:08]} Be6 {[%emt 0:00:39]} 9. b3 {[%emt 0:02:39]} Bd5 {[%emt 0:04:42]} 10. Bb2 {[%emt 0:06:05]} Ne8 {[%emt 0:02:00]} 11. e3 {[%emt 0:12:33]} Nd6 {[%emt 0:07:20]} 12. Qe2 {[%emt 0:01:28]} a5 {[%emt 0:04:55]} 13. a4 {[%emt 0:06:53]} Nb4 {[%emt 0:04:09]} 14. Rfd1 {[%emt 0:03:16]} Qe8 {[%emt 0:11:30]} 15. Ne1 {[%emt 0:13:41]} Nxc4 {[%emt 0:01:56]} 16. bxc4 {[%emt 0:01:35]} Bxg2 {[%emt 0:00:07]} 17. Nxg2 {[%emt 0:00:05]} e5 {[%emt 0:00:15]} 18. d5 {[%emt 0:00:08]} b6 {[%emt 0:09:30]} 19. e4 {[%emt 0:01:48]} Qd7 {[%emt 0:05:11]} 20. Ne1 {[%emt 0:01:28]} f5 {[%emt 0:00:16]} 21. Nf3 {[%emt 0:03:39]} fxe4 {[%emt 0:04:20]} 22. Ng5 {[%emt 0:00:21]} Qf5 {[%emt 0:03:04]} 23. Nxe4 {[%emt 0:01:14]} Qf3 {[%emt 0:01:07]} 24. Qxf3 {[%emt 0:02:22]} Rxf3 {[%emt 0:00:02]} 25. d6 {[%emt 0:00:42]} cxd6 {[%emt 0:00:36]} 26. Rxd6 {[%emt 0:04:05]} Rb3 {[%emt 0:03:22]} 27. Bc1 {[%emt 0:04:22]} Nc2 {[%emt 0:03:57]} 28. Ra2 {[%emt 0:00:12]} Nd4 {[%emt 0:00:06]} 29. Rb2 {[%emt 0:00:19]} Rxb2 {[%emt 0:07:32]} 30. Bxb2 {[%emt 0:00:12]} Rc8 {[%emt 0:00:26]} 31. Rxb6 {[%emt 0:15:57]} Rxc4 {[%emt 0:00:08]} 32. Rb8+ {[%emt 0:01:15]} Bf8 {[%emt 0:00:06]} 33. Ba3 {[%emt 0:03:36]} Nf3+ {[%emt 0:03:20]} 34. Kf1 {[%emt 0:02:10]} Nxh2+ {[%emt 0:01:09]} 35. Kg2 {[%emt 0:00:08]} Rxe4 {[%emt 0:00:11]} 36. Kxh2 {[%emt 0:00:55]} Rxa4 {[%emt 0:00:09]} 37. Rxf8+ {[%emt 0:00:20]} Kg7 {[%emt 0:00:03]} 38. Bd6 {[%emt 0:00:17]} 1-0

[Event "RUS-chT Premier 2019"]
[Site "Sochi"]
[Date "2019.05.07"]
[Round "6.16"]
[White "Bocharov, Dmitry"]
[Black "Yuffa, Daniil"]
[Result "1/2-1/2"]
[ECO "E68"]
[WhiteElo "2530"]
[BlackElo "2595"]
[Annotator "ChessBase"]
[PlyCount "109"]
[EventDate "2019.05.01"]
[EventType "team-tourn"]
[EventCountry "RUS"]
[SourceTitle "playchess.com"]
[Source "ChessBase"]
[SourceQuality "1"]
[TimeControl "40/5400+30:1800+30"]

1. d4 {[%emt 0:00:00]} Nf6 {[%emt 0:00:00]} 2. c4 {[%emt 0:00:00]} g6 {[%emt 0:00:00]} 3. Nf3 {[%emt 0:00:15]} Bg7 {[%emt 0:00:00]} 4. g3 {[%emt 0:00:13]} O-O {[%emt 0:00:06]} 5. Bg2 {[%emt 0:00:14]} d6 {[%emt 0:00:08]} 6. Nc3 {[%emt 0:00:29]} Nbd7 {[%emt 0:00:39]} 7. O-O {[%emt 0:00:23]} e5 {[%emt 0:00:05]} 8. e4 {[%emt 0:00:15]} Re8 {[%emt 0:00:06]} 9. h3 {[%emt 0:08:15]} exd4 {[%emt 0:00:34]} 10. Nxd4 {[%emt 0:00:06]} Nc5 {[%emt 0:00:05]} 11. Re1 {[%emt 0:00:39]} Bd7 {[%emt 0:00:16]} 12. Bf4 {[%emt 0:05:01]} h6 {[%emt 0:00:07]} 13. Kh2 {[%emt 0:05:42]} g5 {[%emt 0:13:22]} 14. Bc1 {[%emt 0:02:11]} a5 {[%emt 0:02:05]} 15. f3 {[%emt 0:07:05]} c6 {[%emt 0:24:04]} 16. Be3 {[%emt 0:01:56]} a4 {[%emt 0:03:05]} 17. Rb1 {[%emt 0:06:56]} Nh5 {[%emt 0:11:35]} 18. Qd2 {[%emt 0:06:05]} Qe7 {[%emt 0:04:20]} 19. Rbd1 {[%emt 0:11:43]} Rad8 {[%emt 0:02:13]} 20. Bf2 {[%emt 0:07:01]} Be5 {[%emt 0:04:15]} 21. Nce2 {[%emt 0:01:50]} Qf6 {[%emt 0:05:20]} 22. Be3 {[%emt 0:07:35]} Qg7 {[%emt 0:00:21]} 23. b4 {[%emt 0:00:38]} axb3 {[%emt 0:00:16]} 24. axb3 {[%emt 0:00:03]} b5 {[%emt 0:06:44]} 25. cxb5 {[%emt 0:02:24]} cxb5 {[%emt 0:00:03]} 26. b4 {[%emt 0:03:00]} Na4 {[%emt 0:01:25]} 27. f4 {[%emt 0:07:54]} Bf6 {[%emt 0:00:04]} 28. Bf3 {[%emt 0:10:56]} g4 {[%emt 0:00:07]} 29. hxg4 {[%emt 0:00:22]} Bxg4 {[%emt 0:00:04]} 30. Bxg4 {[%emt 0:00:07]} Qxg4 {[%emt 0:00:10]} 31. Nf5 {[%emt 0:00:18]} Bg7 {[%emt 0:07:04]} 32. Ned4 {[%emt 0:03:59]} Rxe4 {[%emt 0:01:33]} 33. Bf2 {[%emt 0:00:07]} Rde8 {[%emt 0:05:37]} 34. Nxd6 {[%emt 0:01:57]} Nxf4 {[%emt 0:02:24]} 35. gxf4 {[%emt 0:00:19]} Qh5+ {[%emt 0:01:41]} 36. Kg2 {[%emt 0:00:16]} Qg6+ {[%emt 0:00:20]} 37. Kf3 {[%emt 0:01:23]} Rxe1 {[%emt 0:04:23]} 38. Rxe1 {[%emt 0:00:02]} Rxe1 {[%emt 0:01:31]} 39. Qxe1 {[%emt 0:00:30]} Qxd6 {[%emt 0:00:15]} 40. Qe8+ {[%emt 0:00:00]} Bf8 {[%emt 0:00:00]} 41. Nxb5 {[%emt 0:10:42]} Qxb4 {[%emt 0:02:02]} 42. Bd4 {[%emt 0:04:17]} Qb3+ {[%emt 0:01:14]} 43. Kf2 {[%emt 0:02:35]} Qd5 {[%emt 0:05:43]} 44. Qe5 {[%emt 0:02:39]} Qxe5 {[%emt 0:00:08]} 45. fxe5 {[%emt 0:01:32]} Bc5 {[%emt 0:01:21]} 46. Kf3 {[%emt 0:01:31]} Kh7 {[%emt 0:00:39]} 47. Ke4 {[%emt 0:02:13]} Kg6 {[%emt 0:00:31]} 48. Nc7 {[%emt 0:06:35]} Bxd4 {[%emt 0:00:52]} 49. Kxd4 {[%emt 0:00:08]} Kf5 {[%emt 0:00:06]} 50. Ne8 {[%emt 0:00:08]} Nb6 {[%emt 0:03:49]} 51. Ng7+ {[%emt 0:03:36]} Kg6 {[%emt 0:00:54]} 52. e6 {[%emt 0:00:11]} Nc8 {[%emt 0:00:21]} 53. Nf5 {[%emt 0:00:05]} fxe6 {[%emt 0:00:34]} 54. Nxh6 {[%emt 0:00:08]} Kxh6 {[%emt 0:00:15]} 55. Ke5 {[%emt 0:00:06]} 1/2-1/2

[Event "RUS-chT Premier 2019"]
[Site "Sochi"]
[Date "2019.05.07"]
[Round "6.17"]
[White "Antipov, Mikhail Al."]
[Black "Kezin, Roman"]
[Result "1/2-1/2"]
[ECO "B47"]
[WhiteElo "2595"]
[BlackElo "2468"]
[Annotator "ChessBase"]
[PlyCount "85"]
[EventDate "2019.05.01"]
[EventType "team-tourn"]
[EventCountry "RUS"]
[SourceTitle "playchess.com"]
[Source "ChessBase"]
[SourceQuality "1"]
[TimeControl "40/5400+30:1800+30"]

1. e4 {[%emt 0:00:00]} c5 {[%emt 0:00:00]} 2. Nf3 {[%emt 0:00:00]} e6 {[%emt 0:00:00]} 3. d4 {[%emt 0:00:00]} cxd4 {[%emt 0:00:00]} 4. Nxd4 {[%emt 0:00:00]} Nc6 {[%emt 0:00:00]} 5. Nc3 {[%emt 0:00:00]} Qc7 {[%emt 0:00:00]} 6. Ncb5 {[%emt 0:00:02]} Qb8 {[%emt 0:08:13]} 7. Bd3 {[%emt 0:00:08]} Nge7 {[%emt 0:14:17]} 8. Be3 {[%emt 0:17:23]} a6 {[%emt 0:22:22]} 9. Nxc6 {[%emt 0:00:55]} bxc6 {[%emt 0:01:03]} 10. Nc3 {[%emt 0:01:59]} Ng6 {[%emt 0:07:33]} 11. O-O {[%emt 0:04:47]} Bd6 {[%emt 0:08:20]} 12. g3 {[%emt 0:09:29]} Qc7 {[%emt 0:07:09]} 13. f4 {[%emt 0:16:09]} c5 {[%emt 0:01:43]} 14. e5 {[%emt 0:02:54]} Be7 {[%emt 0:00:16]} 15. h4 {[%emt 0:01:15]} h5 {[%emt 0:08:08]} 16. Be4 {[%emt 0:09:14]} Rb8 {[%emt 0:02:41]} 17. Qf3 {[%emt 0:02:38]} d5 {[%emt 0:07:45]} 18. exd6 {[%emt 0:00:14]} Bxd6 {[%emt 0:00:04]} 19. Rad1 {[%emt 0:03:29]} f5 {[%emt 0:04:45]} 20. Bc6+ {[%emt 0:00:53]} Kf7 {[%emt 0:00:15]} 21. Rd2 {[%emt 0:03:07]} Ne7 {[%emt 0:02:44]} 22. Rfd1 {[%emt 0:01:26]} Nxc6 {[%emt 0:01:18]} 23. Rxd6 {[%emt 0:00:04]} Nd4 {[%emt 0:00:02]} 24. Bxd4 {[%emt 0:00:51]} cxd4 {[%emt 0:00:05]} 25. R1xd4 {[%emt 0:00:45]} Rxb2 {[%emt 0:00:15]} 26. Qd3 {[%emt 0:03:05]} Kg6 {[%emt 0:01:34]} 27. Rc4 {[%emt 0:03:14]} Qa7+ {[%emt 0:00:11]} 28. Kf1 {[%emt 0:00:51]} Qb7 {[%emt 0:00:55]} 29. Rcc6 {[%emt 0:10:17]} Rd8 {[%emt 0:00:01]} 30. Nd5 {[%emt 0:05:30]} Rxd6 {[%emt 0:02:24]} 31. Rxd6 {[%emt 0:00:01]} Kh7 {[%emt 0:00:50]} 32. Qe2 {[%emt 0:02:19]} Rb1+ {[%emt 0:00:24]} 33. Kf2 {[%emt 0:00:10]} Qf7 {[%emt 0:00:31]} 34. Nb6 {[%emt 0:02:23]} Rh1 {[%emt 0:00:37]} 35. Qc4 {[%emt 0:00:53]} Qg6 {[%emt 0:00:32]} 36. Qd3 {[%emt 0:00:55]} Bb7 {[%emt 0:00:14]} 37. Nd7 {[%emt 0:00:04]} Qg4 {[%emt 0:00:43]} 38. Nf8+ {[%emt 0:00:49]} Kg8 {[%emt 0:00:02]} 39. Nxe6 {[%emt 0:00:10]} Rh2+ {[%emt 0:00:02]} 40. Ke1 {[%emt 0:00:00]} Rh1+ {[%emt 0:00:00]} 41. Kf2 {[%emt 0:00:32]} Rh2+ {[%emt 0:00:57]} 42. Ke1 {[%emt 0:14:08]} Rh1+ {[%emt 0:00:08]} 43. Kf2 {[%emt 0:00:06]} 1/2-1/2